bitfinex/quotes_ETHUSD_20241212
["timestamp","ask_amount","ask_price","bid_price","bid_amount"]
[1734032230744,0.2,3858.5,3858.3,0.25918]
[1734032230943,0.2,3858.6,3858.5,0.25916]
[1734032231246,3.37129,3860.6,3859.1,0.25912]
[1734032231448,0.2,3859.3,3859.1,0.25912]
[1734032231656,0.2,3859.8,3858.6,3.25916]
[1734032231947,0.2,3859.7,3859.6,0.25909]
[1734032232145,0.2,3859.9,3859.7,0.25908]
[1734032232374,0.2,3860.3,3860.2,0.25905]
[1734032232680,0.2,3861.3,3861.2,0.25898]
[1734032233226,0.806,3862.1,3859.9,3.25907]
[1734032233227,0.2,3860.8,3860.5,0.25903]
[1734032233542,3.42764105,3862.1,3861.8,0.25894]
[1734032233543,0.2,3861.9,3861.8,0.25894]
[1734032233744,0.2,3861.5,3859.7,3.24999093]
[1734032233942,0.2,3861.0,3859.8,0.52499909]
[1734032234151,0.2,3861.2,3861.0,0.25899]
[1734032234326,0.2,3861.4,3861.2,0.25898]
[1734032234532,0.2,3861.4,3860.6,0.13085285]
[1734032234533,0.2,3861.9,3861.7,0.25894]
[1734032235014,0.2,3861.5,3860.6,0.13085285]
[1734032235300,0.2,3860.2,3859.6,0.25909]
[1734032235785,0.2,3860.2,3858.7,1.08320633]
[1734032235786,0.2,3861.1,3860.9,0.259]
[1734032235928,0.2,3861.4,3861.3,0.25897]
[1734032236131,0.2,3861.4,3861.2,0.25898]
[1734032236132,0.9712,3861.4,3861.2,0.25898]
[1734032236398,0.9712,3861.4,3860.2,0.25905]
[1734032236399,0.2,3860.8,3860.7,0.25902]
[1734032236688,0.9712,3861.4,3861.3,0.25898]
[1734032236895,0.2,3861.8,3861.7,0.25895]
[1734032237094,2.58746,3864.8,3861.7,0.25895]
[1734032237095,0.2,3862.0,3861.9,0.25893]
[1734032237313,0.25,3864.6,3861.9,0.25893]
[1734032237314,0.2,3862.4,3862.3,0.25891]
[1734032237427,0.2,3862.9,3862.6,0.25889]
[1734032237634,0.8154,3863.0,3862.8,0.25887]
[1734032238089,0.8154,3863.0,3862.8,0.38996844]
[1734032238289,1.0,3865.0,3863.8,0.25881]
[1734032238290,0.2,3863.9,3863.8,0.25881]
[1734032238535,0.2,3864.2,3862.8,0.13109844]
[1734032238738,1.0,3865.0,3862.8,0.13109844]
[1734032238739,0.2,3863.9,3863.8,0.2588]
[1734032238948,0.2,3863.9,3862.8,0.38996844]
[1734032238949,0.2,3864.2,3862.9,0.25887]
[1734032239249,1.0,3865.0,3864.9,0.25873]
[1734032239394,0.01867944,3867.5,3865.7,0.9]
[1734032239595,0.01867944,3867.5,3862.9,3.68391431]
[1734032239596,0.01867944,3867.5,3865.6,0.25868]
[1734032239796,0.01867944,3867.5,3864.1,0.13243129]
[1734032239797,0.26706906,3866.8,3866.7,3.25861]
[1734032240096,9.06e-06,3866.8,3866.7,3.584471]
[1734032240423,0.03231823,3869.6,3867.8,0.25853]
[1734032240728,0.03231823,3869.6,3867.0,0.25859]
[1734032240898,0.03231823,3869.6,3868.4,0.2585]
[1734032241232,0.51690736,3870.2,3866.5,0.13228895]
[1734032241233,0.26690736,3870.2,3867.2,0.51716]
[1734032241544,2.58359,3870.6,3868.9,0.25846]
[1734032241713,0.26158963,3870.5,3868.9,0.25846]
[1734032241913,0.29389366,3870.5,3868.6,0.25848]
[1734032242221,2.58422,3869.7,3867.7,0.12693165]
[1734032242426,0.03230607,3869.6,3866.5,0.25863]
[1734032242625,0.25,3869.6,3866.8,0.2586]
[1734032242823,2.58461,3869.1,3866.9,0.2586]
[1734032243000,0.03231644,3869.5,3867.7,0.8304]
[1734032243001,0.03231905,3869.0,3867.7,0.8304]
[1734032243402,2.58462,3869.1,3867.7,0.8304]
[1734032243601,0.2488,3868.2,3866.9,0.1295456]
[1734032243901,1.0777,3868.2,3866.9,0.1295456]
[1734032244124,0.0323193,3868.1,3866.0,0.13121999]
[1734032244329,3.41448,3867.6,3865.4,5.32757509]
[1734032244529,0.25,3867.1,3865.4,5.32757509]
[1734032244716,2.58661,3866.1,3865.4,5.32757509]
[1734032245013,2.58607,3866.9,3865.4,2.38059785]
[1734032245235,3.64897065,3866.8,3865.4,2.12189785]
[1734032245452,0.03233298,3866.7,3865.4,2.12189785]
[1734032245626,2.61853298,3866.7,3865.4,2.12189785]
[1734032245828,2.58662,3866.1,3865.4,2.12189785]
[1734032246037,0.801,3866.8,3865.4,2.12189785]
[1734032246563,0.815,3867.6,3865.5,0.7636]
[1734032246774,0.815,3867.6,3865.6,0.25868]
[1734032246918,2.61762184,3868.1,3866.0,0.25866]
[1734032247115,0.36814218,3868.0,3865.9,1.06094892]
[1734032247375,0.03232567,3867.9,3865.9,1.06094892]
[1734032247658,0.2488,3868.2,3866.0,0.12607917]
[1734032247855,2.58579,3867.3,3865.9,1.06094892]
[1734032248058,2.58524,3868.1,3865.9,1.06094892]
[1734032248262,2.58591,3867.2,3865.9,1.06094892]
[1734032248553,0.815,3866.6,3865.9,1.06094892]
[1734032249129,2.5864,3866.4,3865.9,1.06094892]
[1734032249333,0.02491987,3866.3,3865.9,1.06094892]
[1734032249721,2.58664,3866.1,3865.9,1.06094892]
[1734032249946,0.57491987,3866.0,3865.9,0.85099319]
[1734032250149,2.58698,3865.5,3865.4,2.12189785]
[1734032250366,2.58649,3866.3,3865.4,2.12189785]
[1734032250585,2.58692,3865.6,3865.4,2.12189785]
[1734032250874,2.58651,3866.2,3865.4,2.12189785]
[1734032251237,2.58693,3865.6,3865.4,2.12189785]
[1734032251436,3.65129,3866.6,3865.4,2.12189785]
[1734032251437,0.815,3866.6,3865.4,2.12189785]
[1734032251639,0.815,3866.6,3865.5,0.0258698]
[1734032251878,2.58565,3867.5,3865.5,0.0258698]
[1734032252084,2.5858,3867.3,3865.8,0.25867]
[1734032252229,5.32219965,3868.5,3865.4,0.02586283]
[1734032252230,2.58559,3867.6,3865.4,0.02586283]
[1734032252428,2.58559,3867.6,3866.0,0.25865]
[1734032252677,0.28347887,3867.5,3865.4,0.2587]
[1734032252960,2.58597,3867.1,3865.7,1.03348]
[1734032253196,0.7565,3867.6,3865.8,0.0258634]
[1734032253467,0.7565,3867.6,3866.0,3.0]
[1734032253673,0.7565,3867.6,3865.7,0.7748]
[1734032253674,0.7565,3867.6,3866.1,0.02585766]
[1734032253880,0.7565,3867.6,3866.1,3.0]
[1734032254030,0.2488,3868.2,3866.8,0.25861]
[1734032254231,0.02491987,3868.1,3866.5,0.25862]
[1734032254555,0.2488,3868.2,3866.2,3.32585711]
[1734032254724,0.02491987,3868.1,3866.6,0.25862]
[1734032254926,0.02491987,3868.1,3866.8,0.2586]
[1734032255126,0.02491987,3868.1,3866.0,0.02585865]
[1734032255127,0.28589199,3868.0,3866.0,0.02585865]
[1734032255329,0.27371987,3868.2,3867.0,0.25859]
[1734032255555,0.2488,3868.2,3866.1,0.02585837]
[1734032255778,0.2488,3868.2,3867.2,0.25858]
[1734032255927,0.2488,3868.2,3866.3,0.15794426]
[1734032256125,0.2488,3868.2,3866.7,0.25861]
[1734032256126,2.61017987,3868.1,3866.7,0.25861]
[1734032256450,0.28589799,3868.0,3866.7,0.25861]
[1734032256838,0.28589799,3868.0,3865.9,3.0]
[1734032256839,0.02491987,3867.9,3865.9,3.0]
[1734032257151,0.02491987,3867.9,3865.7,0.7748]
[1734032257152,2.58546,3867.8,3865.7,0.90604847]
[1734032257335,0.02491987,3867.9,3865.7,0.90604847]
[1734032257670,2.61030987,3867.9,3865.7,0.90604847]
[1734032257864,0.26103099,3867.8,3865.7,0.7748]
[1734032258184,0.26103099,3867.8,3865.0,0.7626]
[1734032258185,0.55,3867.5,3865.0,0.7626]
[1734032258344,0.2488,3868.2,3862.6,0.02587267]
[1734032258345,3.55,3866.8,3862.6,0.02587267]
[1734032258545,3.55,3866.8,3863.4,0.12673959]
[1734032258546,2.5877,3864.5,3863.4,0.12673959]
[1734032258806,0.02491987,3864.4,3863.4,0.12673959]
[1734032259075,0.7945,3865.6,3862.9,1.02146]
[1734032259076,2.58793,3864.1,3862.9,0.7626]
[1734032259375,0.7945,3865.6,3864.7,0.25874]
[1734032259376,0.02491987,3865.4,3864.7,0.25874]
[1734032259539,2.58716,3865.3,3863.8,0.2588]
[1734032259739,0.28363587,3865.2,3863.3,0.25884]
[1734032259939,0.28363587,3865.2,3862.3,0.38510698]
[1734032259940,2.58767,3864.5,3863.0,0.25886]
[1734032260128,0.02491987,3864.4,3862.4,0.2589]
[1734032260332,2.58685,3865.7,3862.4,0.2589]
[1734032260333,2.58585,3867.2,3865.3,0.2587]
[1734032260545,2.58585,3867.2,3863.0,0.24999093]
[1734032260546,0.12816073,3867.0,3864.3,0.25877]
[1734032260867,0.12816073,3867.0,3863.7,0.51762]
[1734032260868,2.58654,3866.2,3863.7,0.51762]
[1734032261068,0.28357387,3866.1,3865.2,0.25871]
[1734032261236,0.7945,3866.8,3864.0,0.02587141]
[1734032261563,0.02491987,3866.7,3864.8,0.25874]
[1734032261726,0.7945,3866.8,3865.0,3.0]
[1734032261931,0.7945,3867.8,3866.0,0.25866]
[1734032262130,0.36290387,3867.7,3866.6,0.25862]
[1734032262465,0.2488,3868.2,3866.6,0.25862]
[1734032262768,0.2488,3868.2,3867.9,0.25853]
[1734032262978,0.2488,3868.2,3867.2,0.7626]
[1734032262979,0.2488,3868.2,3867.4,0.25856]
[1734032263481,0.2488,3868.2,3867.3,0.25857]
[1734032263692,0.2488,3868.2,3868.0,0.25852]
[1734032263986,0.2488,3868.2,3866.6,0.7626]
[1734032264335,0.53219,3868.2,3866.6,0.7626]
[1734032264732,0.53219,3868.2,3868.0,0.25852]
[1734032264733,0.2488,3868.2,3868.0,0.25852]
[1734032264932,0.7945,3869.7,3868.9,0.25846]
[1734032265189,1.03343182,3870.3,3868.1,0.25852]
[1734032265415,1.03343182,3870.3,3868.0,0.7884464]
[1734032265416,0.7945,3870.4,3869.4,0.25843]
[1734032265536,0.7945,3870.4,3868.2,0.02584212]
[1734032265537,0.7945,3870.4,3869.1,0.25845]
[1734032265733,0.7945,3870.4,3868.0,0.7626]
[1734032265734,0.7945,3870.4,3870.2,0.25838]
[1734032266044,0.7945,3870.4,3869.1,0.25845]
[1734032266045,0.02491987,3870.4,3869.1,0.25845]
[1734032266244,0.7945,3870.9,3869.8,0.25841]
[1734032266464,0.7945,3870.9,3868.6,0.39089376]
[1734032266465,0.7945,3870.9,3868.7,0.02583851]
[1734032266636,0.7945,3870.9,3868.8,0.7626]
[1734032266836,0.7945,3870.9,3868.9,0.02583786]
[1734032267236,0.7945,3870.9,3869.0,0.37884379]
[1734032267437,0.02491987,3870.8,3869.3,0.25844]
[1734032267745,0.1625601,3871.2,3870.3,0.25837]
[1734032267962,0.26657842,3870.9,3870.3,0.25837]
[1734032268310,0.02491987,3870.8,3869.2,0.25844]
[1734032268449,0.02491987,3870.7,3869.1,0.25845]
[1734032268751,0.02491987,3870.7,3868.6,0.25848]
[1734032268752,5.49130728,3872.4,3867.6,0.02584066]
[1734032268955,3.46888782,3875.2,3867.6,0.02584066]
[1734032268956,1.62674136,3875.5,3875.3,0.25804]
[1734032269141,2.5657265,3876.9,3876.5,0.25]
[1734032269341,2.5657265,3876.9,3874.2,2.0]
[1734032269342,2.5657265,3876.9,3876.7,0.25]
[1734032269538,2.5657265,3877.0,3876.7,0.25]
[1734032269737,3.0788718,3878.7,3877.9,0.25]
[1734032269738,2.5784,3878.4,3877.9,0.25]
[1734032269979,2.5784,3878.4,3876.3,0.67735066]
[1734032269980,0.25,3878.2,3876.4,0.02578652]
[1734032270169,0.25,3878.2,3876.2,0.1280868]
[1734032270170,0.25,3877.9,3876.2,0.1280868]
[1734032270478,2.57929,3877.1,3874.7,0.38403024]
[1734032270778,0.25,3877.2,3873.7,0.0258024]
[1734032270981,0.25,3876.6,3873.4,0.15337273]
[1734032271187,2.71001779,3877.3,3873.1,0.25818]
[1734032271188,0.25,3875.9,3873.1,0.25818]
[1734032271368,0.25,3876.1,3872.9,0.12829165]
[1734032271570,2.58011,3875.8,3873.7,0.25814]
[1734032271739,2.57921,3877.2,3872.9,0.12829165]
[1734032271740,0.258011,3875.7,3872.9,0.12829165]
[1734032271939,3.0,3876.6,3874.0,0.25812]
[1734032272252,0.55,3875.9,3873.0,0.02581285]
[1734032272451,0.55,3874.9,3872.9,0.12829165]
[1734032272676,0.55,3874.9,3873.2,0.25818]
[1734032272881,0.55,3874.9,3872.9,0.12829165]
[1734032272882,0.55,3874.9,3872.4,0.02581544]
[1734032273049,0.55,3873.5,3871.7,1.05602307]
[1734032273250,0.02581544,3874.8,3870.2,0.02582344]
[1734032273251,3.55,3873.3,3870.2,0.02582344]
[1734032273447,0.55,3873.1,3870.2,0.02582344]
[1734032273645,0.02581544,3873.0,3870.4,0.50595345]
[1734032273877,3.13241,3872.4,3870.4,0.38850647]
[1734032274189,0.02581544,3872.3,3870.4,0.13014647]
[1734032274570,0.55,3872.3,3870.9,0.39165158]
[1734032274769,0.68234,3872.3,3871.1,0.25832]
[1734032275172,0.7734,3872.4,3871.3,0.2583]
[1734032275379,0.7734,3872.4,3871.0,0.78658195]
[1734032275598,0.02581544,3872.9,3870.4,0.15597564]
[1734032275804,0.55,3873.1,3871.5,0.76833424]
[1734032276003,0.55,3872.9,3870.4,0.13014647]
[1734032276322,0.55,3872.6,3870.8,0.25834]
[1734032276617,0.02581544,3872.5,3870.6,0.25835]
[1734032276783,0.55,3872.3,3870.6,0.25835]
[1734032276983,0.02581544,3872.2,3870.6,0.25835]
[1734032277312,0.02581544,3872.2,3870.3,0.828]
[1734032277313,0.55,3872.0,3870.3,0.828]
[1734032277512,0.02581544,3871.9,3870.3,0.828]
[1734032278013,0.55,3871.6,3870.3,0.828]
[1734032278217,0.57581544,3871.9,3870.3,0.828]
[1734032278378,0.02581544,3871.9,3870.4,0.25836]
[1734032278584,0.02581544,3872.1,3870.4,0.25836]
[1734032278783,2.583,3871.5,3869.8,0.2584]
[1734032279033,2.583,3871.5,3869.6,0.764]
[1734032279034,0.88911544,3871.4,3869.6,0.764]
[1734032279250,0.02581544,3871.4,3869.6,0.764]
[1734032279377,0.55,3871.3,3869.7,0.25841]
[1734032279582,0.02581544,3871.2,3869.7,0.25841]
[1734032279795,0.55,3871.3,3870.0,0.25839]
[1734032279983,0.57581544,3871.6,3870.0,0.25839]
[1734032280203,0.55,3871.4,3869.7,0.25841]
[1734032280525,0.55,3871.4,3869.6,0.764]
[1734032280721,0.55,3871.7,3869.7,0.02583587]
[1734032280909,0.8059,3871.8,3871.0,0.25832]
[1734032281227,0.8059,3872.9,3871.2,0.25831]
[1734032281430,0.8059,3872.9,3870.5,0.25836]
[1734032281584,2.5822,3872.7,3870.9,0.25833]
[1734032281919,0.02581544,3872.6,3870.0,3.0]
[1734032282219,0.8059,3872.9,3871.8,0.25827]
[1734032282408,0.8059,3872.9,3870.8,3.0]
[1734032282594,2.58112,3874.3,3872.7,0.25821]
[1734032282919,2.58092,3874.6,3871.5,3.0]
[1734032283103,2.58053,3875.2,3871.9,3.0]
[1734032283283,2.58034,3875.5,3872.0,0.02581468]
[1734032283487,2.58013,3875.8,3872.4,0.25823]
[1734032283730,0.26674949,3876.0,3872.7,0.24999093]
[1734032283886,0.26674949,3876.0,3873.3,0.25817]
[1734032284085,0.26674949,3876.0,3872.8,0.15815217]
[1734032284086,0.00509327,3875.9,3874.1,3.0]
[1734032284327,0.00791153,3874.9,3874.8,0.25807]
[1734032284549,1.53e-06,3874.9,3874.8,0.25807]
[1734032284703,0.20800182,3875.6,3872.6,0.25822]
[1734032284911,0.25,3875.0,3874.2,0.25811]
[1734032285160,0.25,3875.2,3873.1,3.0]
[1734032285294,0.25,3875.7,3873.7,0.12709336]
[1734032285630,0.00509327,3875.9,3873.7,0.12709336]
[1734032285795,0.20800182,3875.5,3874.4,0.25809]
[1734032286128,0.00509327,3875.9,3874.2,0.25811]
[1734032286129,0.25,3875.3,3874.2,0.25811]
[1734032286334,0.20800182,3875.4,3874.3,1.0221]
[1734032286493,0.00509327,3875.9,3874.3,0.764]
[1734032287039,0.00509327,3875.9,3875.2,0.25804]
[1734032287196,0.00509327,3875.9,3874.3,0.764]
[1734032287507,0.00509327,3875.9,3875.1,0.25805]
[1734032287942,0.00509327,3875.9,3875.2,0.25804]
[1734032288108,0.00509327,3875.9,3874.3,0.764]
[1734032288309,0.45800182,3875.7,3874.5,0.25809]
[1734032288498,0.45800182,3875.7,3874.3,0.764]
[1734032288499,0.20800182,3875.7,3874.3,0.764]
[1734032288699,0.25,3874.9,3872.7,0.777]
[1734032288906,0.03226058,3875.8,3873.4,0.25817]
[1734032289100,0.00509327,3875.9,3873.3,0.777]
[1734032289338,0.00509327,3875.9,3874.2,0.25811]
[1734032289510,0.00509327,3875.9,3874.0,0.777]
[1734032289835,0.00509327,3875.9,3874.2,0.25811]
[1734032290037,0.00509327,3875.9,3875.4,0.25803]
[1734032290238,0.00509327,3875.9,3875.6,0.25802]
[1734032290601,0.00509327,3875.9,3874.7,3.0]
[1734032290903,0.00509327,3875.9,3874.4,3.0]
[1734032291131,0.00509327,3875.9,3875.7,0.25801]
[1734032291540,0.00509327,3875.9,3875.4,1.04753]
[1734032291839,0.21309509,3875.9,3874.5,0.7895]
[1734032292141,0.20800182,3874.8,3873.8,0.7895]
[1734032292345,0.20800182,3874.4,3872.3,0.25824]
[1734032292499,0.20800182,3875.4,3874.2,0.25811]
[1734032292704,0.00509327,3875.9,3873.2,0.7895]
[1734032292925,0.00509327,3875.9,3873.1,0.13172381]
[1734032292926,0.00509327,3875.9,3873.4,2.7895]
[1734032293125,0.00509327,3875.9,3874.0,0.25813]
[1734032293326,0.20800182,3875.7,3873.9,0.7895]
[1734032293636,0.00509327,3875.9,3873.9,0.7895]
[1734032293839,0.00509327,3875.9,3875.7,0.25801]
[1734032294446,0.00509327,3875.9,3874.9,3.0]
[1734032294606,0.00509327,3875.9,3875.7,0.25801]
[1734032294804,0.00509327,3875.9,3875.0,0.08054851]
[1734032295016,0.00509327,3875.9,3875.4,0.25803]
[1734032295226,0.00509327,3875.9,3875.1,0.25805]
[1734032295407,0.00509327,3875.9,3875.3,0.25804]
[1734032295632,0.00509327,3875.9,3874.5,0.7895]
[1734032295843,0.00509327,3875.9,3875.4,0.25803]
[1734032296022,0.25,3875.7,3874.8,0.25807]
[1734032296361,0.20800182,3875.2,3873.8,0.8031]
[1734032296505,0.20800182,3875.6,3874.0,0.25812]
[1734032296816,0.20800182,3875.6,3874.1,0.3724088]
[1734032297018,0.20800182,3875.4,3874.2,0.36998492]
[1734032297216,0.20800182,3875.4,3874.3,0.24207891]
[1734032297518,0.25,3874.5,3873.8,0.8031]
[1734032297718,0.03734787,3875.9,3873.3,0.25817]
[1734032297719,0.20800182,3874.3,3873.3,0.25817]
[1734032297919,1.03570182,3875.8,3873.4,0.1616541]
[1734032298219,0.25,3875.6,3874.9,0.25807]
[1734032298416,0.20800182,3875.3,3874.5,0.25809]
[1734032298617,0.20800182,3875.3,3873.4,0.37756609]
[1734032298830,0.20800182,3874.9,3873.5,0.16174656]
[1734032299030,0.20800182,3874.9,3874.4,0.2581]
[1734032299249,0.20800182,3874.9,3873.2,0.25818]
[1734032299549,0.20800182,3874.9,3874.4,0.2581]
[1734032299947,0.45800182,3875.4,3873.8,3.0]
[1734032300250,0.8277,3875.8,3874.0,0.25813]
[1734032300251,0.20800182,3875.7,3874.0,0.25813]
[1734032300411,0.20800182,3875.7,3875.4,0.25803]
[1734032301238,1.0777,3875.8,3874.4,0.7968]
[1734032301239,0.8277,3875.8,3874.4,0.7968]
[1734032301435,0.20800182,3876.1,3875.6,0.25801]
[1734032301746,0.20800182,3876.1,3875.8,0.25801]
[1734032301968,0.20800182,3876.1,3874.8,0.25807]
[1734032301969,0.20800182,3876.6,3875.6,3.0]
[1734032302170,0.20800182,3877.0,3875.6,0.3]
[1734032302373,0.20800182,3877.0,3876.8,0.25794]
[1734032302573,0.20800182,3877.2,3875.8,0.25801]
[1734032302759,0.03733306,3878.6,3875.9,0.16165944]
[1734032302760,0.45800182,3876.9,3875.9,0.16165944]
[1734032302964,0.45800182,3876.9,3876.4,0.25796]
[1734032303265,0.25,3876.8,3876.2,0.25798]
[1734032303461,0.25,3876.8,3876.3,0.25797]
[1734032303664,0.25,3876.8,3875.8,0.25801]
[1734032303665,0.25,3876.8,3875.9,0.258]
[1734032303867,0.20800182,3876.2,3875.5,0.25803]
[1734032304193,0.20800182,3876.4,3875.6,0.16164541]
[1734032304401,0.25,3876.5,3875.2,0.7739]
[1734032304687,0.20800182,3876.3,3875.5,0.25803]
[1734032304969,0.20800182,3876.3,3875.0,0.25806]
[1734032304970,0.45800182,3876.3,3874.7,0.25808]
[1734032305188,0.25,3876.3,3875.2,3.0]
[1734032305334,0.20800182,3876.4,3875.3,0.1616246]
[1734032305535,0.20800182,3876.2,3875.5,0.25802]
[1734032305834,0.25,3876.1,3875.2,3.0]
[1734032306077,0.25,3876.1,3875.6,0.25801]
[1734032306236,0.25,3876.1,3874.8,0.25807]
[1734032306435,0.25,3876.1,3875.9,0.258]
[1734032306937,0.20800182,3876.6,3876.4,0.25796]
[1734032307177,0.20800182,3876.6,3875.4,0.25803]
[1734032307178,0.20800182,3876.5,3875.6,0.25802]
[1734032307339,0.20800182,3876.3,3875.7,0.16184286]
[1734032307701,0.45800182,3876.3,3876.1,0.25799]
[1734032307840,0.45800182,3876.3,3875.8,0.16184286]
[1734032308035,0.45800182,3876.3,3876.0,0.25799]
[1734032308036,0.25,3876.3,3876.0,0.25799]
[1734032308235,0.25,3876.3,3876.1,0.16184111]
[1734032308460,0.20800182,3876.6,3876.2,0.16184111]
[1734032308645,0.20800182,3876.6,3876.3,0.16184111]
[1734032308947,0.20800182,3876.6,3875.5,0.25802]
[1734032308948,0.25,3876.5,3876.4,0.16184111]
[1734032309271,0.8306,3877.2,3875.9,0.251]
[1734032309272,0.20800182,3876.2,3875.9,0.251]
[1734032309472,0.20800182,3876.2,3876.0,0.16241183]
[1734032309676,0.20800182,3876.2,3876.1,0.16241183]
[1734032310238,0.03224706,3877.1,3874.6,0.7968]
[1734032310239,0.25,3875.4,3874.6,0.7968]
[1734032310481,0.25,3875.1,3874.7,0.16246857]
[1734032310780,4.3205664,3876.6,3873.9,0.13141042]
[1734032310781,0.20800182,3874.7,3873.9,0.13141042]
[1734032310976,0.25,3877.0,3873.9,0.13141042]
[1734032310977,0.20800182,3875.9,3875.3,0.25804]
[1734032311135,0.25,3876.0,3874.0,0.54009301]
[1734032311136,0.20800182,3875.5,3874.7,0.25808]
[1734032311336,0.20800182,3875.5,3873.9,0.25813]
[1734032311337,0.45800182,3875.0,3874.4,0.2581]
[1734032311570,0.45800182,3874.8,3874.5,0.16253206]
[1734032311810,0.45800182,3874.8,3874.6,0.16253206]
[1734032311948,0.20800182,3874.8,3874.7,0.16253206]
[1734032312139,0.45800182,3874.8,3874.7,0.16253206]
[1734032312571,0.25,3874.8,3874.7,0.42061206]
[1734032312736,0.7676,3875.3,3874.8,0.25807]
[1734032312737,0.25,3875.2,3874.8,0.25807]
[1734032312937,0.45800182,3875.0,3874.9,0.16253206]
[1734032313167,0.20800182,3875.0,3874.9,0.16253206]
[1734032313478,0.45800182,3875.0,3874.9,0.16253206]
[1734032314360,0.7676,3875.3,3874.9,0.16253206]
[1734032314361,0.45800182,3875.2,3874.9,0.16253206]
[1734032314549,0.45800182,3875.2,3875.0,0.16253206]
[1734032314751,0.5,3875.9,3875.1,0.16253206]
[1734032314940,0.5,3875.9,3875.8,0.25801]
[1734032315139,0.95800182,3875.9,3875.8,0.16253206]
[1734032315340,0.95800182,3875.9,3875.6,0.25802]
[1734032315538,0.95800182,3875.9,3874.8,3.7927]
[1734032315539,0.25,3875.6,3875.3,0.25804]
[1734032315943,0.25,3875.6,3874.8,0.7927]
[1734032315944,0.20800182,3875.7,3875.4,0.25803]
[1734032316314,0.5,3875.9,3875.8,0.25801]
[1734032317050,0.5,3875.9,3874.8,0.7927]
[1734032317051,0.25,3877.1,3875.9,0.258]
[1734032317249,0.25,3877.1,3877.0,0.25793]
[1734032317438,2.57679,3880.8,3875.9,0.258]
[1734032317439,0.45800182,3876.7,3876.4,0.25797]
[1734032317639,0.25,3876.6,3876.5,0.25796]
[1734032318187,0.45800182,3876.7,3876.6,0.25795]
[1734032318426,0.25,3876.4,3874.4,3.0]
[1734032318538,0.7518,3877.4,3876.0,0.25799]
[1734032318539,0.25,3876.2,3876.0,0.25799]
[1734032318735,0.25,3876.1,3875.1,0.25805]
[1734032318940,0.25,3876.1,3876.0,0.25799]
[1734032319702,0.20800182,3876.4,3875.6,0.12743687]
[1734032319841,0.20800182,3876.4,3876.3,0.25797]
[1734032320044,0.20800182,3876.6,3875.6,0.12743687]
[1734032320346,0.7518,3877.4,3876.7,0.25795]
[1734032320347,0.45800182,3876.8,3876.7,0.25795]
[1734032320739,0.7518,3877.4,3876.9,0.25793]
[1734032320740,0.25,3877.0,3876.9,0.25793]
[1734032321040,2.57838,3878.4,3877.2,0.25791]
[1734032321041,0.20800182,3877.3,3877.2,0.25791]
[1734032321249,0.20800182,3877.3,3876.3,0.25797]
[1734032321440,0.20800182,3876.9,3876.3,0.429076]
[1734032321642,0.20800182,3876.7,3876.1,0.25798]
[1734032321890,0.20800182,3876.7,3876.6,0.25795]
[1734032321891,0.25,3876.7,3876.6,0.25795]
[1734032322098,0.45800182,3875.4,3874.4,2.86936012]
[1734032322322,0.45800182,3874.5,3874.4,2.11226012]
[1734032322438,0.45800182,3874.5,3873.1,1.0561515]
[1734032322439,0.20800182,3873.3,3873.1,1.58486049]
[1734032322639,0.45800182,3873.1,3872.9,0.7581]
[1734032322875,0.55,3873.0,3872.9,0.7581]
[1734032323053,0.55,3873.0,3871.2,0.13081319]
[1734032323054,0.20800182,3871.7,3871.6,0.25828]
[1734032323490,0.20800182,3871.5,3871.3,0.2583]
[1734032323641,0.20800182,3871.5,3871.3,0.55075005]
[1734032323843,0.20800182,3871.5,3871.3,0.2583]
[1734032323844,0.45800182,3871.5,3871.3,0.2583]
[1734032324116,0.20800182,3870.7,3870.6,0.7502]
[1734032324385,0.45800182,3870.7,3870.6,0.7502]
[1734032324899,0.45800182,3870.7,3870.5,0.25836]
[1734032325745,0.20800182,3870.5,3870.2,0.25837]
[1734032325991,0.20800182,3870.3,3870.2,0.25838]
[1734032326360,0.25,3870.4,3869.2,0.25844]
[1734032326361,0.20800182,3870.0,3869.2,0.25844]
[1734032326563,6.91675686,3871.0,3868.0,3.16841162]
[1734032326564,0.20800182,3869.0,3868.0,3.16841162]
[1734032326903,0.25,3869.3,3868.0,3.16841162]
[1734032326904,0.8233,3869.9,3868.6,0.13169048]
[1734032327048,0.25,3870.6,3868.9,0.25847]
[1734032327380,0.25,3869.9,3869.7,0.25841]
[1734032327609,0.25,3869.5,3869.2,0.25844]
[1734032327758,0.25,3869.5,3868.8,0.25847]
[1734032328134,0.25,3869.5,3868.9,0.25846]
[1734032328967,0.25,3869.5,3869.2,0.25844]
[1734032329166,0.7583,3869.8,3869.6,0.25842]
[1734032329612,0.25,3871.6,3869.7,0.0129716]
[1734032329886,0.25,3871.3,3870.3,0.25837]
[1734032330099,0.25,3871.3,3870.8,3.0]
[1734032330304,0.25,3871.3,3870.9,0.3]
[1734032330510,2.58227,3872.6,3869.0,1.3146115]
[1734032330511,0.25,3871.1,3870.3,1.06637]
[1734032330722,0.03228864,3872.5,3870.3,0.808]
[1734032330723,0.25,3870.8,3870.3,0.808]
[1734032331002,0.25,3871.1,3870.8,0.25834]
[1734032331200,0.25,3871.5,3870.9,0.25833]
[1734032331342,0.25,3871.5,3870.4,0.27132106]
[1734032331343,0.25,3871.5,3871.1,0.25832]
[1734032331550,0.25,3873.9,3870.4,0.01295106]
[1734032331551,0.25,3871.3,3870.9,0.25833]
[1734032331743,0.25,3871.5,3870.8,3.0]
[1734032331975,2.58148,3873.8,3870.7,3.0]
[1734032331976,0.25,3871.2,3870.7,3.0]
[1734032332190,0.25,3871.2,3870.7,0.325835]
[1734032332589,0.25,3871.0,3870.7,0.325835]
[1734032333337,0.25,3871.0,3870.9,0.25833]